bitfinex-derivatives/quotes_BTCF0:USTF0_20241025
["timestamp","ask_amount","ask_price","bid_price","bid_amount"]
[1729820611884,0.0501157,67916.0,67915.0,0.38018245]
[1729820612687,0.1237687,67916.0,67915.0,0.38018245]
[1729820614782,0.073667,67903.0,67896.0,0.073674]
[1729820614982,0.1503471,67915.0,67895.0,0.3608]
[1729820614983,0.1237807,67899.0,67895.0,0.3608]
[1729820615283,0.073659,67904.0,67895.0,0.3803462]
[1729820615489,0.0501157,67900.0,67896.0,0.073667]
[1729820615691,0.0501157,67899.0,67896.0,0.073667]
[1729820615897,0.073659,67904.0,67896.0,0.073667]
[1729820616103,0.1237747,67904.0,67899.0,0.1002314]
[1729820616306,0.4109157,67905.0,67897.0,0.1002314]
[1729820616307,0.0501157,67900.0,67897.0,0.1002314]
[1729820616496,0.0501157,67900.0,67897.0,0.1738964]
[1729820617192,0.0501157,67900.0,67897.0,0.1002314]
[1729820620004,0.0501157,67900.0,67897.0,0.14429476]
[1729820620400,0.3608,67905.0,67899.0,0.0501157]
[1729820620606,0.0501157,67902.0,67899.0,0.1738954]
[1729820622300,0.0501157,67902.0,67901.0,0.08812673]
[1729820622506,0.0501157,67902.0,67901.0,0.09943975]
[1729820622803,0.4109157,67905.0,67901.0,0.09943975]
[1729820623012,0.4109157,67905.0,67902.0,0.43476476]
[1729820623206,0.4109157,67905.0,67903.0,0.18753336]
[1729820623411,0.00588889,67905.0,67904.0,0.18753336]
[1729820623608,0.0501157,67907.0,67904.0,0.14955545]
[1729820623906,0.0501157,67907.0,67905.0,0.09943975]
[1729820624113,0.0501157,67907.0,67906.0,0.09943975]
[1729820624307,0.0501157,67907.0,67906.0,0.18753246]
[1729820624502,0.1002314,67907.0,67906.0,0.09943975]
[1729820624903,0.1002314,67907.0,67906.0,0.09894991]
[1729820626813,0.073651,67912.0,67906.0,0.26715337]
[1729820627005,0.0501157,67912.0,67911.0,0.16179785]
[1729820627213,0.0501157,67916.0,67914.0,0.073647]
[1729820627412,0.0501157,67916.0,67915.0,0.14754991]
[1729820627911,0.073644,67918.0,67915.0,0.38747236]
[1729820628211,0.1237597,67918.0,67917.0,0.08816319]
[1729820628413,0.1237597,67918.0,67917.0,0.09894991]
[1729820631115,0.073635,67926.0,67923.0,0.073638]
[1729820631316,0.0501157,67927.0,67926.0,0.073635]
[1729820631514,0.434433,67928.0,67926.0,0.26077322]
[1729820631715,0.073633,67928.0,67927.0,0.17258391]
[1729820632020,0.1237487,67928.0,67927.0,0.17258391]
[1729820632204,0.3608,67938.0,67927.0,0.67702997]
[1729820632407,0.073623,67937.0,67936.0,0.1002314]
[1729820632619,0.1237387,67937.0,67936.0,0.09894991]
[1729820633115,0.1237387,67937.0,67936.0,0.18708846]
[1729820633322,0.0501157,67937.0,67936.0,0.18708846]
[1729820633510,0.0501157,67945.0,67936.0,0.21879718]
[1729820633711,0.1738494,67942.0,67941.0,0.1002314]
[1729820634310,0.1738494,67942.0,67940.0,0.07332318]
[1729820634513,0.0501157,67940.0,67939.0,0.073621]
[1729820634711,0.1002314,67940.0,67939.0,0.073621]
[1729820634908,0.1738514,67940.0,67938.0,0.07332318]
[1729820635108,0.1738514,67940.0,67936.0,0.16656305]
[1729820635415,0.0501157,67937.0,67936.0,0.09323987]
[1729820635919,0.1237387,67937.0,67936.0,0.01961587]
[1729820636122,0.1237387,67937.0,67934.0,0.14694918]
[1729820636417,0.1237387,67937.0,67933.0,0.43412318]
[1729820636418,0.073623,67937.0,67933.0,0.43412318]
[1729820637016,0.0763887,67941.0,67935.0,0.0763887]
[1729820637515,0.3608,67944.0,67933.0,0.37983027]
[1729820637516,0.3608,67944.0,67941.0,0.073618]
[1729820637719,0.3608,67944.0,67943.0,0.0763887]
[1729820637908,0.3608,67944.0,67941.0,0.073618]
[1729820638112,0.3608,67944.0,67940.0,0.1527774]
[1729820638314,0.3608,67944.0,67943.0,0.1500047]
[1729820640215,0.1499997,67948.0,67943.0,0.1500047]
[1729820640516,0.1499997,67948.0,67945.0,0.3608]
[1729820640724,0.073612,67947.0,67945.0,0.3608]
[1729820641916,0.0763887,67948.0,67945.0,0.3608]
[1729820642118,0.073608,67951.0,67947.0,0.0763887]
[1729820642327,0.07361,67949.0,67947.0,0.0763887]
[1729820642512,0.07361,67949.0,67946.0,0.0763887]
[1729820642911,0.07361,67949.0,67945.0,0.3608]
[1729820643114,0.1499987,67949.0,67945.0,0.3608]
[1729820643319,0.0763887,67948.0,67945.0,0.3608]
[1729820644521,0.073613,67947.0,67945.0,0.3608]
[1729820644719,0.073613,67946.0,67945.0,0.3608]
[1729820645118,0.1500017,67946.0,67945.0,0.3608]
[1729820645625,0.073613,67946.0,67945.0,0.3608]
[1729820646227,0.073613,67946.0,67944.0,0.05856914]
[1729820647427,0.0763887,67949.0,67945.0,0.073614]
[1729820647627,0.0763887,67950.0,67946.0,0.13484375]
[1729820648016,0.1499977,67950.0,67946.0,0.13484375]
[1729820648526,0.0763887,67950.0,67946.0,0.13484375]
[1729820648718,0.07361,67949.0,67946.0,0.13484375]
[1729820648919,0.07361,67949.0,67946.0,0.05845505]
[1729820649621,0.07361,67949.0,67947.0,0.05845505]
[1729820650425,0.07361,67949.0,67948.0,0.05845505]
[1729820651130,0.07361,67949.0,67947.0,0.05845505]
[1729820651629,0.07361,67949.0,67948.0,0.05845505]
[1729820652523,0.07361,67949.0,67945.0,0.073614]
[1729820655021,0.1527774,67947.0,67943.0,0.38031342]
[1729820655528,0.0763887,67944.0,67943.0,0.38031342]
[1729820655733,0.2263924,67944.0,67943.0,0.38031342]
[1729820656428,0.2607555,67944.0,67943.0,0.01951342]
[1729820656632,0.2607555,67944.0,67938.0,0.073621]
[1729820656822,0.0763887,67939.0,67934.0,0.529106]
[1729820657127,0.0763887,67938.0,67937.0,0.073623]
[1729820659434,0.1104652,67938.0,67937.0,0.073623]
[1729820660628,0.0763887,67938.0,67937.0,0.28727447]
[1729820663230,0.03218448,67938.0,67937.0,0.28727447]
[1729820664335,0.05013177,67938.0,67937.0,0.21365147]
[1729820664632,0.05013177,67941.0,67938.0,0.073621]
[1729820664839,0.05013177,67941.0,67939.0,0.21365147]
[1729820665141,0.05013177,67941.0,67938.0,0.17388454]
[1729820665142,0.05013177,67941.0,67940.0,0.21365147]
[1729820665336,0.05013177,67941.0,67940.0,0.28727147]
[1729820666433,0.05013177,67941.0,67940.0,0.28781293]
[1729820671937,0.05013177,67941.0,67940.0,0.28799278]
[1729820674748,0.05205177,67942.0,67940.0,0.28799278]
[1729820675051,0.05013177,67942.0,67941.0,0.21437278]
[1729820675643,0.05013177,67942.0,67941.0,0.04412767]
[1729820676354,0.12374877,67942.0,67941.0,0.04412767]
[1729820676748,0.12374877,67942.0,67940.0,0.04412767]
[1729820677351,0.073619,67941.0,67940.0,0.04412767]
[1729820680245,0.073619,67941.0,67938.0,0.1324589]
[1729820680466,0.073619,67941.0,67939.0,0.073621]
[1729820681944,0.073619,67941.0,67939.0,0.1324579]
[1729820682145,0.073619,67941.0,67939.0,0.073621]
[1729820682550,0.073619,67941.0,67940.0,0.21513234]
[1729820686055,0.073619,67941.0,67940.0,0.31823925]
[1729820686459,0.073619,67941.0,67940.0,0.45421867]
[1729820686651,0.09303911,67941.0,67940.0,0.31823925]
[1729820687555,0.14317088,67941.0,67940.0,0.21513234]
[1729820687755,0.19257088,67941.0,67940.0,0.21513234]
[1729820688057,0.14243911,67941.0,67940.0,0.09814603]
[1729820688560,0.14243911,67941.0,67940.0,0.18650212]
[1729820689153,0.63413088,67941.0,67940.0,0.18650212]
[1729820689560,0.63413088,67941.0,67940.0,0.09814603]
[1729820690554,0.073621,67939.0,67936.0,0.04416128]
[1729820690754,0.53468654,67937.0,67936.0,0.04416128]
[1729820690963,0.63495008,67937.0,67936.0,0.04416128]
[1729820691363,0.56132708,67937.0,67935.0,0.04416128]
[1729820691556,0.073624,67936.0,67935.0,0.04416128]
[1729820691753,0.073627,67933.0,67932.0,0.13250971]
[1729820691964,0.12375877,67933.0,67932.0,0.13250971]
[1729820692564,0.12375877,67933.0,67932.0,0.073628]
[1729820697668,0.12375877,67933.0,67932.0,0.21603016]
[1729820700270,0.12375877,67933.0,67932.0,0.21608744]
[1729820701362,0.17389054,67933.0,67932.0,0.21608744]
[1729820701576,0.10026354,67933.0,67932.0,0.21608744]
[1729820702777,0.17389154,67933.0,67932.0,0.21608744]
[1729820703970,0.12375977,67933.0,67932.0,0.21608744]
[1729820704383,0.17389154,67933.0,67932.0,0.21608744]
[1729820705086,0.05013177,67933.0,67932.0,0.21608744]
[1729820705386,0.3628,67945.0,67933.0,0.073627]
[1729820705387,0.073618,67942.0,67933.0,0.073627]
[1729820705582,0.073619,67941.0,67940.0,0.10026354]
[1729820705785,0.073621,67940.0,67938.0,0.04413363]
[1729820706080,0.05013177,67939.0,67938.0,0.04413363]
[1729820706270,0.10026354,67939.0,67938.0,0.04413363]
[1729820706778,0.10026354,67939.0,67937.0,0.04413363]
[1729820706779,0.51119531,67939.0,67937.0,0.04413363]
[1729820706983,0.05013177,67938.0,67936.0,0.04413363]
[1729820707285,0.12375577,67936.0,67935.0,0.04413724]
[1729820707485,0.05013177,67935.0,67934.0,0.05884681]
[1729820707685,0.073626,67934.0,67933.0,0.05884698]
[1729820707981,0.073626,67934.0,67929.0,0.10954698]
[1729820707982,0.073628,67932.0,67929.0,0.10954698]
[1729820708178,0.05013177,67931.0,67929.0,0.0507]
[1729820710584,0.05013177,67931.0,67929.0,0.124331]
[1729820710884,0.12376077,67931.0,67929.0,0.124331]
[1729820711091,0.12376077,67931.0,67930.0,0.09264132]
[1729820711890,0.12376077,67931.0,67930.0,0.0485]
[1729820712185,0.17389254,67931.0,67930.0,0.0485]
[1729820712581,0.10026354,67934.0,67930.0,0.14693128]
[1729820712781,0.05013177,67934.0,67931.0,0.22219205]
[1729820713087,0.05013177,67934.0,67932.0,0.09843128]
[1729820713396,0.073625,67935.0,67933.0,0.09843128]
[1729820713687,0.10026354,67937.0,67934.0,0.09843128]
[1729820713888,0.17388754,67937.0,67935.0,0.09843128]
[1729820714078,0.17388754,67937.0,67936.0,0.09843128]
[1729820714276,0.41093177,67940.0,67936.0,0.17205528]
[1729820714590,0.3608,67940.0,67938.0,0.18855977]
[1729820714889,0.3608,67940.0,67939.0,0.09843128]
[1729820715390,0.48455177,67940.0,67939.0,0.18672751]
[1729820715794,0.48455177,67940.0,67939.0,0.09843128]
[1729820716183,0.53468354,67940.0,67939.0,0.18672751]
[1729820717279,0.53468354,67940.0,67939.0,0.09843128]
[1729820721584,0.53468354,67940.0,67939.0,0.1867616]
[1729820721780,0.53468354,67940.0,67939.0,0.09843128]
[1729820722885,0.073627,67933.0,67932.0,0.08928381]
[1729820723100,0.12375877,67933.0,67932.0,0.30501984]
[1729820723392,0.12375877,67933.0,67932.0,0.17204944]
[1729820723690,0.05013177,67933.0,67932.0,0.21588366]
[1729820723897,0.05013177,67933.0,67932.0,0.09842144]
[1729820724798,0.12375877,67933.0,67932.0,0.09842144]
[1729820726286,0.13936455,67933.0,67932.0,0.09842144]
[1729820727783,0.13936455,67933.0,67923.0,0.04415578]
[1729820727784,0.073637,67924.0,67923.0,0.04415578]
[1729820727983,0.073637,67924.0,67915.0,0.43439298]
[1729820727984,0.073639,67922.0,67920.0,0.04415578]
[1729820728185,0.10026354,67923.0,67919.0,0.04415578]
[1729820728186,0.05013177,67920.0,67919.0,0.04415578]
[1729820728388,0.12377377,67919.0,67917.0,0.04415578]
[1729820728588,0.05013177,67918.0,67917.0,0.11779978]
[1729820729296,0.05013177,67918.0,67917.0,0.073644]
[1729820730285,0.05013177,67924.0,67917.0,0.12377577]
[1729820730606,0.073638,67923.0,67921.0,0.10026354]
[1729820730891,0.05013177,67921.0,67918.0,0.21806232]
[1729820731286,0.05013177,67921.0,67918.0,0.17390654]
[1729820732184,0.05013177,67921.0,67918.0,0.21806232]
[1729820733992,0.05013177,67921.0,67919.0,0.04415578]
[1729820734393,0.05013177,67921.0,67918.0,0.21806232]
[1729820734898,0.05013177,67921.0,67919.0,0.04415578]
[1729820735085,0.12377277,67921.0,67919.0,0.04415578]
[1729820735285,0.12377277,67921.0,67918.0,0.14441932]
[1729820735494,0.12377277,67921.0,67919.0,0.09837553]
[1729820735694,0.12377277,67921.0,67920.0,0.09837553]
[1729820736894,0.3608,67925.0,67920.0,0.09837553]
[1729820737092,0.05013177,67926.0,67923.0,0.18843576]
[1729820737289,0.05013177,67926.0,67924.0,0.09837553]
[1729820737494,0.073635,67926.0,67925.0,0.09837553]
[1729820737795,0.12376677,67926.0,67925.0,0.09837553]
[1729820738497,0.48456677,67926.0,67925.0,0.09837553]
[1729820738698,0.05013177,67925.0,67921.0,0.21051222]
[1729820738998,0.05013177,67923.0,67922.0,0.18646442]
[1729820739398,0.05013177,67923.0,67922.0,0.0982922]
[1729820740406,0.10026354,67923.0,67922.0,0.18646442]
[1729820740897,0.073636,67925.0,67922.0,0.0982922]
[1729820741101,0.3608,67926.0,67924.0,0.21192174]
[1729820741402,0.073635,67927.0,67925.0,0.0982922]
[1729820741594,0.073635,67927.0,67926.0,0.18644093]
[1729820741995,0.05013177,67930.0,67928.0,0.073633]
[1729820741996,0.073631,67930.0,67928.0,0.073633]
[1729820742198,0.073631,67930.0,67929.0,0.27218774]
[1729820742396,0.073631,67930.0,67929.0,0.17389554]
[1729820743296,0.05013177,67933.0,67929.0,0.17389554]
[1729820743496,0.073629,67932.0,67929.0,0.17389554]
[1729820743903,0.05013177,67933.0,67929.0,0.17389554]
[1729820744202,0.07363,67931.0,67929.0,0.17389554]
[1729820744997,0.12376177,67931.0,67929.0,0.17389554]
[1729820746197,0.07363,67931.0,67929.0,0.17389554]
[1729820746393,0.436346,67934.0,67932.0,0.073628]
[1729820746693,0.436346,67934.0,67933.0,0.22369054]
[1729820746694,0.434426,67934.0,67933.0,0.22369054]
[1729820747198,0.48455777,67934.0,67933.0,0.22369054]
[1729820748500,0.05013177,67934.0,67933.0,0.22369054]
[1729820749098,0.12375777,67934.0,67933.0,0.22369054]
[1729820749602,0.12375777,67934.0,67933.0,0.23914872]
[1729820750499,0.12375777,67934.0,67933.0,0.45446632]
[1729820751299,0.12375777,67934.0,67933.0,0.33070755]
[1729820751501,0.12375777,67934.0,67933.0,0.28057578]
[1729820751807,0.12375777,67934.0,67933.0,0.16348873]
[1729820752010,0.12375777,67934.0,67933.0,0.28063201]
[1729820752910,0.12375777,67934.0,67933.0,0.21537383]
[1729820753211,0.12375777,67934.0,67933.0,0.21519462]
[1729820754615,0.48455777,67934.0,67933.0,0.18638497]
[1729820754806,0.53685777,67934.0,67933.0,0.09817444]
[1729820755399,0.55217393,67934.0,67933.0,0.09817444]
[1729820756809,0.53685777,67934.0,67933.0,0.09817444]
[1729820757499,0.53685777,67934.0,67929.0,0.10026354]
[1729820757500,0.07363,67930.0,67929.0,0.10026354]
[1729820757709,0.07363,67930.0,67929.0,0.19854586]
[1729820759308,0.07363,67930.0,67929.0,0.28675639]
[1729820760503,0.07363,67930.0,67929.0,0.23662462]
[1729820760804,0.12376177,67930.0,67929.0,0.09828232]
[1729820761500,0.12376377,67929.0,67928.0,0.08821053]
[1729820761702,0.12376377,67929.0,67928.0,0.18636889]
[1729820762306,0.12376377,67929.0,67928.0,0.09815836]
[1729820762606,0.12376377,67929.0,67928.0,0.07355345]
[1729820762811,0.073633,67928.0,67927.0,0.07355345]
[1729820763010,0.12376477,67928.0,67927.0,0.17196547]
[1729820763410,0.05013177,67927.0,67926.0,0.07355345]
[1729820763708,0.48456577,67927.0,67926.0,0.07355345]
[1729820763905,0.05013177,67926.0,67925.0,0.07355648]
[1729820764101,0.10026354,67926.0,67924.0,0.0735569]
[1729820764298,0.10026354,67926.0,67915.0,0.3608]
[1729820764299,0.10163177,67925.0,67923.0,0.0735569]
[1729820764504,0.17390054,67924.0,67923.0,0.0735569]
[1729820764708,0.12376977,67923.0,67922.0,0.0735569]
[1729820765009,0.12376977,67923.0,67922.0,0.1722454]
[1729820765205,0.12376977,67923.0,67922.0,0.0735569]
[1729820765401,0.12376977,67923.0,67915.0,0.3608]
[1729820765402,0.073646,67916.0,67915.0,0.3608]
[1729820765597,0.073646,67916.0,67914.0,0.01575532]
[1729820765801,0.05013177,67914.0,67911.0,0.073651]
[1729820767210,0.05013177,67914.0,67912.0,0.05013177]
[1729820768006,0.05013177,67914.0,67912.0,0.12378177]
[1729820768408,0.05013177,67914.0,67912.0,0.17391354]
[1729820769812,0.12377377,67919.0,67914.0,0.073648]
[1729820770009,0.12377377,67919.0,67917.0,0.05013177]
[1729820770515,0.073638,67923.0,67918.0,0.12377477]
[1729820770715,0.073638,67923.0,67911.0,0.01572389]
[1729820770716,0.12376977,67923.0,67921.0,0.05013177]
[1729820771417,0.12376977,67923.0,67919.0,0.17390554]
[1729820771615,0.05013177,67920.0,67919.0,0.12377377]
[1729820772111,0.073639,67922.0,67919.0,0.17390554]
[1729820772504,0.073639,67922.0,67921.0,0.08825849]
[1729820772714,0.073639,67922.0,67921.0,0.18682247]
[1729820775117,0.073639,67922.0,67921.0,0.09856398]
[1729820776311,0.12377077,67922.0,67921.0,0.09856398]
[1729820779216,0.12377077,67922.0,67921.0,0.18682247]
[1729820780514,0.12377077,67922.0,67918.0,0.05013177]
[1729820780515,0.073642,67919.0,67918.0,0.05013177]
[1729820780720,0.073648,67914.0,67913.0,0.04410342]
[1729820780920,0.073648,67914.0,67907.0,0.484255]
[1729820780921,0.05013177,67913.0,67907.0,0.0498]
[1729820781221,0.17391654,67909.0,67907.0,0.15006354]
[1729820781416,0.17391654,67909.0,67908.0,0.11363445]
[1729820782712,0.12378477,67909.0,67908.0,0.11363445]
[1729820784117,0.17391654,67909.0,67908.0,0.0487]
[1729820784317,0.17391654,67909.0,67892.0,0.3608]
[1729820784318,0.073658,67905.0,67901.0,0.11776542]
[1729820784631,0.073665,67898.0,67897.0,0.1015]
[1729820784823,0.05013177,67897.0,67892.0,0.40490342]
[1729820785120,0.073667,67896.0,67894.0,0.05013177]
[1729820785422,0.073667,67896.0,67890.0,0.0995]
[1729820785423,0.073673,67891.0,67890.0,0.0995]
[1729820785622,0.17393654,67891.0,67890.0,0.0995]
[1729820785823,0.10026354,67891.0,67890.0,0.0995]
[1729820786011,0.05013177,67891.0,67890.0,0.0995]
[1729820786425,0.12380277,67893.0,67890.0,0.0995]
[1729820787222,0.073672,67892.0,67890.0,0.0995]
[1729820787423,0.00589684,67891.0,67890.0,0.0995]
[1729820787627,0.12380377,67892.0,67890.0,0.31751397]
[1729820787929,0.3608,67895.0,67891.0,0.19972421]
[1729820787930,0.41093177,67895.0,67891.0,0.19972421]
[1729820788223,0.3608,67895.0,67894.0,0.10026354]
[1729820788417,0.3608,67895.0,67894.0,0.19972421]
[1729820789520,0.3608,67895.0,67894.0,0.19949631]
[1729820790728,0.41093177,67895.0,67894.0,0.19949631]
[1729820790938,0.3608,67895.0,67894.0,0.27316531]
[1729820791118,0.12379477,67900.0,67895.0,0.073668]
[1729820791318,0.12379477,67900.0,67899.0,0.07336752]
[1729820791629,0.12379477,67900.0,67899.0,0.09923277]
[1729820792139,0.05013177,67900.0,67899.0,0.09923277]
[1729820792328,0.3608,67902.0,67899.0,0.17565951]
[1729820792524,0.3608,67902.0,67901.0,0.07337697]
[1729820792833,0.3608,67902.0,67901.0,0.09923277]
[1729820793424,0.3608,67902.0,67901.0,0.17289477]
[1729820793728,0.073654,67908.0,67901.0,0.09923277]
[1729820793933,0.073654,67908.0,67905.0,0.15285348]
[1729820794133,0.15008074,67908.0,67904.0,0.14703414]
[1729820794830,0.15008074,67908.0,67904.0,0.073658]
[1729820795028,0.15008074,67908.0,67903.0,0.0504]
[1729820795224,0.3608,67910.0,67905.0,0.15285348]
[1729820795537,0.3608,67910.0,67909.0,0.22650648]
[1729820797825,0.073648,67914.0,67911.0,0.07365]
[1729820798027,0.073648,67914.0,67913.0,0.15285348]
[1729820800430,0.3608,67917.0,67913.0,0.22650148]
[1729820800729,0.434445,67917.0,67913.0,0.22650148]
[1729820801131,0.434445,67917.0,67913.0,0.29985414]
[1729820801440,0.073647,67915.0,67913.0,0.29985414]
[1729820802740,0.073647,67915.0,67913.0,0.22650148]
[1729820805735,0.073648,67914.0,67913.0,0.15285348]
[1729820806143,0.07642674,67916.0,67913.0,0.25144302]
[1729820806335,0.073647,67915.0,67914.0,0.18664798]
[1729820807440,0.02942729,67915.0,67914.0,0.09858954]
[1729820807741,0.073647,67915.0,67914.0,0.09858954]
[1729820808732,0.3608,67917.0,67914.0,0.09858954]
[1729820808937,0.3608,67917.0,67909.0,0.46472375]
[1729820808938,0.3608,67917.0,67916.0,0.22649948]
[1729820809244,0.073643,67918.0,67916.0,0.32508902]
[1729820809546,0.073643,67918.0,67917.0,0.09858954]
[1729820809741,0.3608,67924.0,67917.0,0.09858954]
[1729820810043,0.434437,67924.0,67923.0,0.22624638]
[1729820810248,0.434437,67924.0,67923.0,0.32412769]
[1729820810641,0.434437,67924.0,67923.0,0.17127421]
[1729820811235,0.434437,67924.0,67923.0,0.0733929]
[1729820812138,0.3608,67924.0,67922.0,0.0733929]
[1729820812337,0.073638,67923.0,67922.0,0.0733929]
[1729820812539,0.073638,67923.0,67922.0,0.17109549]
[1729820813251,0.073638,67923.0,67922.0,0.0733929]
[1729820814042,0.073638,67923.0,67922.0,0.17101837]
[1729820815848,0.073638,67923.0,67922.0,0.09762547]
[1729820816245,0.073638,67923.0,67922.0,0.19791205]
[1729820817640,0.073638,67923.0,67922.0,0.10028658]
[1729820817846,0.12378129,67923.0,67922.0,0.10028658]
[1729820818544,0.07364,67921.0,67919.0,0.17392858]
[1729820822050,0.07364,67921.0,67917.0,0.1006]
[1729820822051,0.05014329,67920.0,67917.0,0.0483]
[1729820822553,0.073643,67918.0,67917.0,0.0483]
[1729820822737,0.073643,67918.0,67916.0,0.06616602]
[1729820823143,0.03430367,67917.0,67916.0,0.06616602]
[1729820823657,0.073643,67918.0,67916.0,0.06616602]
[1729820824360,0.073645,67917.0,67916.0,0.01602273]
[1729820824658,0.073646,67916.0,67915.0,0.05014329]
[1729820825445,0.073642,67920.0,67915.0,0.05014329]
[1729820825655,0.07364,67922.0,67919.0,0.05014329]
[1729820825946,0.07364,67922.0,67921.0,0.05014329]
[1729820826145,0.07364,67922.0,67921.0,0.26499831]
[1729820827453,0.073635,67927.0,67921.0,0.33863831]
[1729820827655,0.073635,67927.0,67923.0,0.05014329]
[1729820827849,0.073635,67927.0,67923.0,0.26499831]
[1729820828350,0.073635,67927.0,67923.0,0.4413042]
[1729820829060,0.073635,67926.0,67923.0,0.4413042]
[1729820829559,0.073636,67925.0,67923.0,0.4413042]
[1729820830757,0.073636,67925.0,67923.0,0.45695395]
[1729820831759,0.073636,67925.0,67923.0,0.4569204]
[1729820832555,0.073636,67925.0,67923.0,0.24209893]
[1729820833756,0.434437,67924.0,67923.0,0.16569334]
[1729820833960,0.434437,67924.0,67923.0,0.08928775]
[1729820835064,0.434437,67924.0,67923.0,0.24209893]
[1729820835365,0.073633,67928.0,67927.0,0.073634]
[1729820835569,0.073633,67928.0,67927.0,0.22644518]
[1729820835773,0.3608,67931.0,67927.0,0.22644518]
[1729820835774,0.3608,67931.0,67930.0,0.07363]
[1729820836066,0.3608,67939.0,67930.0,0.15281118]
[1729820836067,0.073624,67936.0,67930.0,0.15281118]
[1729820836257,0.434421,67939.0,67935.0,0.07640559]
[1729820836457,0.434421,67939.0,67936.0,0.073624]
[1729820836458,0.03472734,67938.0,67936.0,0.073624]
[1729820836659,0.073622,67938.0,67936.0,0.073624]
[1729820837169,0.10828263,67937.0,67936.0,0.073624]
[1729820839174,0.18468822,67937.0,67936.0,0.073624]
[1729820840274,0.15002859,67937.0,67936.0,0.073624]
[1729820840773,0.15002859,67937.0,67936.0,0.17111535]
[1729820841574,0.073623,67937.0,67936.0,0.17111535]
[1729820842075,0.073623,67937.0,67936.0,0.18669339]
[1729820842369,0.36272,67938.0,67937.0,0.073623]
[1729820842574,0.3608,67938.0,67937.0,0.14713642]
[1729820842776,0.3608,67938.0,67937.0,0.17103895]
[1729820843172,0.073619,67941.0,67938.0,0.073621]
[1729820843372,0.073619,67941.0,67938.0,0.07349442]
[1729820843675,0.073619,67941.0,67939.0,0.07362]
[1729820843876,0.073619,67941.0,67940.0,0.07362]
[1729820844774,0.434419,67941.0,67940.0,0.07362]
[1729820845176,0.3608,67941.0,67940.0,0.07362]
[1729820845568,0.3608,67941.0,67940.0,0.24436709]
[1729820845864,0.3608,67941.0,67940.0,0.29380808]
[1729820846069,0.3608,67941.0,67940.0,0.22031366]
[1729820846271,0.3608,67941.0,67940.0,0.19648772]
[1729820846673,0.3608,67941.0,67940.0,0.29381026]
[1729820847480,0.3608,67941.0,67940.0,0.19648772]
[1729820847782,0.3608,67941.0,67940.0,0.18177384]
[1729820848673,0.3608,67941.0,67940.0,0.12302]
[1729820848873,0.073614,67946.0,67941.0,0.073618]
[1729820849074,0.073614,67946.0,67944.0,0.04405896]
[1729820849275,0.073614,67946.0,67943.0,0.04405896]
[1729820849478,0.073614,67946.0,67943.0,0.11767396]
[1729820850284,0.073614,67946.0,67945.0,0.073614]
[1729820850477,0.073614,67946.0,67945.0,0.22642518]
[1729820851989,0.073614,67946.0,67945.0,0.073614]
[1729820853478,0.07640559,67946.0,67942.0,0.04405896]
[1729820853785,0.073616,67944.0,67942.0,0.05975472]
[1729820853987,0.073616,67944.0,67942.0,0.2861829]
[1729820854387,0.05013041,67945.0,67944.0,0.073615]
[1729820854987,0.12374441,67945.0,67944.0,0.073615]
[1729820855386,0.073614,67945.0,67944.0,0.073615]
[1729820855686,0.34206994,67945.0,67944.0,0.073615]
[1729820856083,0.19550554,67945.0,67944.0,0.073615]
[1729820857782,0.12189264,67945.0,67944.0,0.073615]
[1729820857988,0.05013041,67948.0,67944.0,0.073615]
[1729820857989,0.12189264,67947.0,67944.0,0.073615]
[1729820858182,0.19550564,67947.0,67946.0,0.10026082]
[1729820859984,0.19556291,67947.0,67946.0,0.10026082]
[1729820861788,0.19556291,67947.0,67946.0,0.17387382]
[1729820861991,0.07566145,67947.0,67946.0,0.17387382]
[1729820862693,0.3608,67949.0,67948.0,0.073611]
[1729820863991,0.073608,67951.0,67948.0,0.073611]
[1729820864185,0.073608,67951.0,67950.0,0.10026082]
[1729820864799,0.073608,67951.0,67950.0,0.17386982]
[1729820865798,0.0484,67958.0,67950.0,0.17386982]
[1729820865799,0.073599,67959.0,67950.0,0.20052164]
[1729820865996,0.073599,67959.0,67958.0,0.17386082]
[1729820870807,0.25320735,67959.0,67958.0,0.08431115]
[1729820871799,0.25320735,67959.0,67958.0,0.15791115]
[1729820872411,0.30333776,67959.0,67958.0,0.15791115]
[1729820872600,0.073603,67955.0,67954.0,0.10026082]
[1729820872902,0.073603,67955.0,67954.0,0.17386482]
[1729820872903,0.15051148,67955.0,67954.0,0.17386482]
[1729820873103,0.19756285,67955.0,67954.0,0.17386482]
[1729820873301,0.19756285,67955.0,67954.0,0.18985284]
[1729820873501,0.25321135,67955.0,67954.0,0.18985284]
[1729820873803,0.25321135,67955.0,67954.0,0.13972243]
[1729820874000,0.30334176,67955.0,67954.0,0.08959202]
[1729820874303,0.30119856,67955.0,67954.0,0.08959202]
[1729820874499,0.35132897,67955.0,67954.0,0.08959202]
[1729820875903,0.35132897,67955.0,67954.0,0.01598802]
[1729820876108,0.27772597,67955.0,67951.0,0.05013041]
[1729820876308,0.25107015,67954.0,67951.0,0.05013041]
[1729820876603,0.25107115,67953.0,67951.0,0.05013041]
[1729820876809,0.17746515,67952.0,67951.0,0.06572427]
[1729820877012,0.12181665,67952.0,67951.0,0.06572427]
[1729820877704,0.434407,67952.0,67951.0,0.12454377]
[1729820877910,0.48453741,67952.0,67951.0,0.01559386]
[1729820878108,0.48453741,67952.0,67951.0,0.0588195]
[1729820879308,0.3608,67952.0,67951.0,0.18255791]
[1729820879512,0.3608,67952.0,67951.0,0.12373841]
[1729820880712,0.073605,67954.0,67951.0,0.05013041]
[1729820880906,0.073605,67954.0,67953.0,0.15905107]
[1729820883807,0.12373541,67954.0,67953.0,0.05879025]
[1729820885708,0.073609,67951.0,67949.0,0.01569279]
[1729820885916,0.12214787,67950.0,67948.0,0.073611]
[1729820886119,0.16152917,67953.0,67951.0,0.073608]
[1729820886314,0.03507039,67952.0,67951.0,0.073608]
[1729820886516,0.1221551,67952.0,67951.0,0.12373841]
[1729820886924,0.1221551,67952.0,67951.0,0.17386882]
[1729820887119,0.25079495,67952.0,67951.0,0.12373841]
[1729820887417,0.19595664,67952.0,67951.0,0.12373841]
[1729820890327,0.19595664,67952.0,67951.0,0.073608]
[1729820890829,0.073615,67944.0,67943.0,0.01577811]
[1729820891127,0.05013041,67943.0,67937.0,0.10026082]
[1729820891419,0.16174977,67938.0,67937.0,0.073622]
[1729820891628,0.073624,67936.0,67935.0,0.09444]
[1729820891826,0.1199781,67936.0,67935.0,0.09444]
[1729820892324,0.1199781,67936.0,67934.0,0.14876082]
[1729820892621,0.1199781,67935.0,67934.0,0.22238682]
[1729820892926,0.3608,67938.0,67935.0,0.073624]